bitfinex-derivatives/quotes_BTCF0:USTF0_20260315
["timestamp","ask_amount","ask_price","bid_price","bid_amount"]
[1773573315046,0.01159987,71763.0,71737.0,0.01265083]
[1773573315248,0.001,71760.0,71737.0,0.01265083]
[1773573315444,0.20686626,71759.0,71737.0,0.01265083]
[1773573315644,0.20686626,71758.0,71737.0,0.01265083]
[1773573315849,0.20686626,71757.0,71737.0,0.01265083]
[1773573316049,0.20686626,71756.0,71737.0,0.01265083]
[1773573316346,0.20686626,71755.0,71737.0,0.01265083]
[1773573316547,0.20686626,71754.0,71737.0,0.01265083]
[1773573316751,0.001,71760.0,71737.0,0.01265083]
[1773573316946,0.001,71757.0,71737.0,0.01265083]
[1773573317247,0.20685085,71756.0,71737.0,0.01265083]
[1773573317448,0.20685085,71755.0,71737.0,0.01265083]
[1773573317638,0.001,71757.0,71737.0,0.01265083]
[1773573318455,0.00259987,71763.0,71737.0,0.01265083]
[1773573318748,0.20684449,71762.0,71737.0,0.01265083]
[1773573318945,0.20684449,71761.0,71737.0,0.01265083]
[1773573319145,0.20684449,71760.0,71737.0,0.01265083]
[1773573319448,0.20684449,71759.0,71737.0,0.01265083]
[1773573319644,0.20684449,71758.0,71737.0,0.01265083]
[1773573319842,0.00259987,71763.0,71737.0,0.01265083]
[1773573320043,0.01259987,71761.0,71737.0,0.01265083]
[1773573320244,0.01159987,71759.0,71737.0,0.01265083]
[1773573320447,0.21844591,71758.0,71737.0,0.01265083]
[1773573320743,0.01159987,71758.0,71737.0,0.01265083]
[1773573321146,0.001,71761.0,71737.0,0.01265083]
[1773573321451,0.001,71761.0,71738.0,0.01265083]
[1773573321749,0.001,71761.0,71739.0,0.01265083]
[1773573321952,0.001,71761.0,71740.0,0.01218825]
[1773573322146,0.00159987,71772.0,71741.0,0.01218825]
[1773573322347,0.20685805,71771.0,71742.0,0.0014]
[1773573322547,0.20685805,71770.0,71743.0,0.01218825]
[1773573322747,0.20685805,71769.0,71743.0,0.01218825]
[1773573323046,0.20685805,71768.0,71743.0,0.01218825]
[1773573323248,0.20685805,71767.0,71743.0,0.01218825]
[1773573323448,0.001,71772.0,71743.0,0.01218825]
[1773573323644,0.20841394,71771.0,71743.0,0.01218825]
[1773573323843,0.20841394,71770.0,71743.0,0.01218825]
[1773573324147,0.20841394,71769.0,71743.0,0.01218825]
[1773573324454,0.20841394,71768.0,71743.0,0.01218825]
[1773573324648,0.20841394,71767.0,71743.0,0.01218825]
[1773573324950,0.02605183,71774.0,71743.0,0.01218825]
[1773573325250,0.20841345,71773.0,71743.0,0.01218825]
[1773573325451,0.20841345,71772.0,71743.0,0.01218825]
[1773573325642,0.20841345,71771.0,71743.0,0.01218825]
[1773573325844,0.20841345,71770.0,71743.0,0.01218825]
[1773573326043,0.20841345,71769.0,71743.0,0.01218825]
[1773573326248,0.20841345,71768.0,71743.0,0.01218825]
[1773573326552,0.20841345,71767.0,71743.0,0.01218825]
[1773573326754,0.0049619,71773.0,71743.0,0.01218825]
[1773573326955,0.20844179,71772.0,71743.0,0.01218825]
[1773573327147,0.20844179,71771.0,71743.0,0.01218825]
[1773573327347,0.20844179,71770.0,71744.0,0.01218825]
[1773573327546,0.20844179,71769.0,71744.0,0.01218825]
[1773573327847,0.20844179,71768.0,71744.0,0.01218825]
[1773573328042,0.20844179,71767.0,71744.0,0.01218825]
[1773573328355,0.20844179,71766.0,71744.0,0.01218825]
[1773573328554,0.00374392,71772.0,71744.0,0.01218825]
[1773573328753,0.20850967,71771.0,71744.0,0.01218825]
[1773573329053,0.20850967,71770.0,71744.0,0.01218825]
[1773573329355,0.20850967,71769.0,71744.0,0.01218825]
[1773573329552,0.20850967,71768.0,71744.0,0.01218825]
[1773573329753,0.20850967,71767.0,71744.0,0.01218825]
[1773573329951,0.20850967,71766.0,71744.0,0.01218825]
[1773573330153,0.20850967,71765.0,71744.0,0.01218825]
[1773573330350,0.20850967,71764.0,71744.0,0.01218825]
[1773573330552,0.20850967,71763.0,71744.0,0.01218825]
[1773573330751,0.20850967,71762.0,71744.0,0.01218825]
[1773573331054,0.20850967,71761.0,71744.0,0.01218825]
[1773573331253,0.20850967,71760.0,71743.0,0.12384229]
[1773573331453,0.20850967,71759.0,71744.0,0.01218825]
[1773573331653,0.00346009,71771.0,71744.0,0.01218825]
[1773573331853,0.20852332,71770.0,71744.0,0.01218825]
[1773573332055,0.20852332,71769.0,71744.0,0.01218825]
[1773573332257,0.20852332,71768.0,71744.0,0.01218825]
[1773573332455,0.20852332,71767.0,71744.0,0.01218825]
[1773573332654,0.20852332,71766.0,71744.0,0.01218825]
[1773573332857,0.20852332,71765.0,71744.0,0.01218825]
[1773573333059,0.20852332,71764.0,71744.0,0.01218825]
[1773573333259,0.20852332,71763.0,71744.0,0.01218825]
[1773573333450,0.20852332,71762.0,71744.0,0.01218825]
[1773573333650,0.19852332,71761.0,71744.0,0.01218825]
[1773573333850,0.00307547,71770.0,71744.0,0.01218825]
[1773573336658,0.00307547,71770.0,71744.0,0.14138534]
[1773573336860,0.00307547,71770.0,71745.0,0.01218825]
[1773573337760,0.00307547,71770.0,71744.0,0.12919709]
[1773573337962,0.00307547,71770.0,71736.0,0.31886825]
[1773573338158,0.00307547,71770.0,71745.0,0.0014]
[1773573345666,0.20849241,71769.0,71745.0,0.0014]
[1773573345966,0.00151303,71767.0,71745.0,0.0014]
[1773573346272,0.00151303,71765.0,71745.0,0.0014]
[1773573346467,0.00151303,71763.0,71745.0,0.0014]
[1773573346663,0.00140193,71761.0,71745.0,0.0014]
[1773573346860,0.20849241,71760.0,71745.0,0.0014]
[1773573349271,0.20894194,71760.0,71745.0,0.0014]
[1773573349476,0.20849241,71759.0,71745.0,0.0014]
[1773573349673,0.00044953,71760.0,71745.0,0.0014]
[1773573351071,0.02198,71774.0,71746.0,0.0014]
[1773573351072,0.00024567,71758.0,71746.0,0.0014]
[1773573351277,0.20855746,71757.0,71747.0,0.0014]
[1773573351479,0.00024567,71771.0,71748.0,0.0014]
[1773573351777,0.00024567,71769.0,71748.0,0.0014]
[1773573352080,0.20856624,71768.0,71748.0,0.01356816]
[1773573352279,0.20856624,71767.0,71748.0,0.01356816]
[1773573352476,0.20856624,71766.0,71748.0,0.01356816]
[1773573352679,0.20856624,71765.0,71748.0,0.01356816]
[1773573352878,0.20856624,71764.0,71748.0,0.01356816]
[1773573353078,0.20856624,71763.0,71748.0,0.01356816]
[1773573353378,0.02198,71774.0,71748.0,0.01356816]
[1773573353572,0.20857098,71773.0,71748.0,0.01356816]
[1773573353775,0.20857098,71772.0,71748.0,0.01356816]
[1773573354179,0.20857098,71771.0,71748.0,0.01356816]
[1773573356386,0.20957098,71771.0,71748.0,0.01356816]
[1773573356589,0.20857098,71770.0,71748.0,0.01356816]
[1773573358091,0.20857098,71769.0,71748.0,0.01356816]
[1773573358284,0.20857098,71768.0,71748.0,0.01356816]
[1773573358484,0.20857098,71767.0,71748.0,0.01356816]
[1773573358686,0.20857098,71766.0,71748.0,0.01356816]
[1773573358886,0.20857098,71765.0,71748.0,0.01356816]
[1773573359194,0.20857098,71764.0,71748.0,0.01356816]
[1773573359396,0.00019219,71771.0,71748.0,0.01356816]
[1773573359594,0.20860921,71770.0,71748.0,0.01356816]
[1773573359794,0.20860921,71769.0,71748.0,0.01356816]
[1773573359996,0.20860921,71768.0,71748.0,0.01356816]
[1773573360294,0.20860921,71767.0,71749.0,0.02190039]
[1773573360494,0.20860921,71766.0,71749.0,0.02190039]
[1773573360693,0.20861151,71765.0,71749.0,0.02190039]
[1773573360889,0.20861151,71764.0,71749.0,0.02190039]
[1773573361091,0.02198,71774.0,71749.0,0.02190039]
[1773573361389,0.20861831,71773.0,71749.0,0.02190039]
[1773573361590,0.20861831,71772.0,71749.0,0.02190039]
[1773573361791,0.20861831,71771.0,71749.0,0.02190039]
[1773573362089,0.20861831,71770.0,71749.0,0.02190039]
[1773573362389,0.20861831,71769.0,71749.0,0.02190039]
[1773573362591,0.20861831,71768.0,71749.0,0.02190039]
[1773573362787,0.20861831,71767.0,71749.0,0.02190039]
[1773573362995,0.20861831,71766.0,71749.0,0.02190039]
[1773573363195,0.20861831,71765.0,71749.0,0.02190039]
[1773573363398,0.20861831,71764.0,71749.0,0.02190039]
[1773573363698,0.02198,71774.0,71749.0,0.02190039]
[1773573363898,0.20863473,71773.0,71749.0,0.02190039]
[1773573364098,0.20863473,71772.0,71749.0,0.02190039]
[1773573364396,0.20863473,71771.0,71748.0,0.0014]
[1773573364592,0.20863473,71770.0,71748.0,0.0014]
[1773573364893,0.20863473,71769.0,71748.0,0.0014]
[1773573365198,0.20863473,71768.0,71748.0,0.0014]
[1773573365395,0.20863473,71767.0,71748.0,0.0014]
[1773573365596,0.20863473,71766.0,71748.0,0.0014]
[1773573365800,0.20863473,71765.0,71748.0,0.0014]
[1773573365993,0.20863473,71764.0,71748.0,0.0014]
[1773573366195,0.02298,71774.0,71748.0,0.0014]
[1773573366396,0.20865553,71773.0,71748.0,0.0014]
[1773573366695,0.20865553,71772.0,71748.0,0.0014]
[1773573366897,0.20865553,71771.0,71749.0,0.01208867]
[1773573367201,0.20865553,71770.0,71749.0,0.01208867]
[1773573367401,0.20865553,71769.0,71749.0,0.01208867]
[1773573367602,0.19865553,71768.0,71749.0,0.01208867]
[1773573367902,0.02198,71774.0,71749.0,0.01208867]
[1773573369103,0.001,71771.0,71749.0,0.01208867]
[1773573369606,0.02198,71774.0,71749.0,0.01208867]
[1773573369807,0.02298,71774.0,71749.0,0.01208867]
[1773573370306,0.001,71771.0,71749.0,0.01208867]
[1773573370691,0.02198,71774.0,71749.0,0.01208867]
[1773573370894,0.02298,71774.0,71749.0,0.01208867]
[1773573372304,0.001,71771.0,71749.0,0.01208867]
[1773573372605,0.001,71771.0,71750.0,0.01208867]
[1773573372909,0.0014,71800.0,71751.0,0.01208867]
[1773573373109,0.0014,71801.0,71752.0,0.0133077]
[1773573373316,0.0014,71801.0,71753.0,0.0133077]
[1773573373607,0.01654897,71802.0,71754.0,0.0133077]
[1773573373810,0.01514897,71802.0,71756.0,0.01329354]
[1773573374007,0.01514897,71802.0,71757.0,0.01329354]
[1773573374605,0.01614897,71802.0,71757.0,0.01329354]
[1773573374813,0.01754897,71802.0,71757.0,0.01329354]
[1773573375104,0.001,71800.0,71757.0,0.01329354]
[1773573375605,0.01714897,71802.0,71757.0,0.01329354]
[1773573375807,0.01714897,71802.0,71761.0,0.01099]
[1773573376002,0.01714897,71802.0,71762.0,0.01455973]
[1773573376200,0.001,71800.0,71762.0,0.01455973]
[1773573376601,0.01199,71800.0,71762.0,0.01455973]
[1773573376808,0.01099,71800.0,71763.0,0.01316354]
[1773573377109,0.01099,71800.0,71764.0,0.01316354]
[1773573377703,0.01199,71800.0,71764.0,0.01316354]
[1773573378308,0.01299,71800.0,71764.0,0.01316354]
[1773573379615,0.20673887,71799.0,71764.0,0.01316354]
[1773573379818,0.20673887,71798.0,71764.0,0.01316354]
[1773573380112,0.20673887,71797.0,71764.0,0.01316354]
[1773573380313,0.20673887,71796.0,71764.0,0.01316354]
[1773573380516,0.20673887,71795.0,71765.0,0.0131399]
[1773573380818,0.20673887,71794.0,71765.0,0.0131399]
[1773573381002,0.20673887,71793.0,71765.0,0.0131399]
[1773573381199,0.20673887,71792.0,71765.0,0.0131399]
[1773573381404,0.01099,71800.0,71768.0,0.005]
[1773573381601,0.20668253,71799.0,71769.0,0.0014]
[1773573381813,0.20668253,71798.0,71769.0,0.0014]
[1773573382001,0.20668253,71797.0,71769.0,0.0014]
[1773573382201,0.20668253,71796.0,71769.0,0.0014]
[1773573382424,0.20668253,71795.0,71769.0,0.0014]
[1773573382610,0.20668253,71794.0,71769.0,0.0014]
[1773573382806,0.20668253,71793.0,71769.0,0.0014]
[1773573383007,0.01099,71800.0,71769.0,0.0014]
[1773573383316,0.20669431,71799.0,71769.0,0.0014]
[1773573383502,0.20669431,71798.0,71769.0,0.0014]
[1773573383706,0.20669431,71797.0,71769.0,0.0014]
[1773573383912,0.20669431,71796.0,71769.0,0.0014]
[1773573384219,0.20669431,71795.0,71769.0,0.0014]
[1773573384408,0.20669431,71794.0,71769.0,0.0014]
[1773573384609,0.20669431,71793.0,71769.0,0.0014]
[1773573384908,0.01099,71800.0,71769.0,0.0014]
[1773573385109,0.20665313,71799.0,71769.0,0.0014]
[1773573385307,0.20665313,71798.0,71769.0,0.01452655]
[1773573385507,0.20665313,71797.0,71769.0,0.01452655]
[1773573385708,0.20665313,71796.0,71769.0,0.01452655]
[1773573386006,0.20664255,71795.0,71769.0,0.01452655]
[1773573386206,0.20664255,71794.0,71769.0,0.01452655]
[1773573386413,0.20664255,71793.0,71769.0,0.01452655]
[1773573386717,0.01099,71800.0,71769.0,0.01452655]
[1773573386906,0.20752633,71799.0,71769.0,0.01452655]
[1773573387103,0.20752633,71798.0,71769.0,0.01452655]
[1773573387308,0.20752633,71797.0,71769.0,0.01452655]
[1773573387508,0.20752633,71796.0,71769.0,0.01452655]
[1773573387711,0.20752633,71795.0,71769.0,0.01452655]
[1773573387912,0.20752633,71794.0,71769.0,0.0014]
[1773573388107,0.20752633,71793.0,71769.0,0.0014]
[1773573388311,0.01099,71800.0,71769.0,0.0014]
[1773573388614,0.2075381,71799.0,71769.0,0.0014]
[1773573388810,0.2075381,71798.0,71761.0,0.01099]
[1773573389015,0.2075381,71797.0,71762.0,0.0014]
[1773573389318,0.0014,71799.0,71762.0,0.0014]
[1773573389319,0.2075381,71796.0,71762.0,0.0014]
[1773573389626,0.2075381,71795.0,71762.0,0.0014]
[1773573389918,0.2075381,71794.0,71762.0,0.0014]
[1773573390119,0.2075381,71793.0,71762.0,0.0014]
[1773573390312,0.2075381,71792.0,71762.0,0.0014]
[1773573390617,0.2075381,71791.0,71762.0,0.0014]
[1773573390818,0.2075381,71790.0,71762.0,0.0014]
[1773573391014,0.2075381,71789.0,71762.0,0.0014]
[1773573391214,0.0014,71799.0,71762.0,0.0014]
[1773573391520,0.20757302,71798.0,71762.0,0.0014]
[1773573391817,0.20757302,71797.0,71762.0,0.0014]
[1773573392117,0.20757302,71796.0,71762.0,0.0014]
[1773573392310,0.20757302,71795.0,71762.0,0.0014]
[1773573392508,0.0014,71799.0,71762.0,0.0014]
[1773573392509,0.20757302,71794.0,71762.0,0.0014]
[1773573392716,0.20757302,71793.0,71762.0,0.0014]
[1773573392918,0.20757302,71792.0,71762.0,0.0014]
[1773573393214,0.20757302,71791.0,71762.0,0.0014]
[1773573393418,0.20757302,71790.0,71762.0,0.0014]
[1773573393718,0.20757302,71789.0,71762.0,0.0014]
[1773573393917,0.20757302,71788.0,71762.0,0.0014]
[1773573394114,0.20757302,71787.0,71762.0,0.0014]
[1773573394316,0.20768109,71786.0,71760.0,0.01099]
[1773573394513,0.0014,71799.0,71763.0,0.0014]
[1773573394708,0.20768152,71798.0,71763.0,0.0014]
[1773573395016,0.01099,71792.0,71763.0,0.0014]
[1773573395216,0.20768152,71791.0,71763.0,0.0014]
[1773573407625,0.20768152,71791.0,71764.0,0.0014]
[1773573407823,0.20768152,71791.0,71765.0,0.0014]
[1773573412331,0.21093533,71790.0,71765.0,0.0014]
[1773573412530,0.21093533,71789.0,71765.0,0.0014]
[1773573412728,0.21093533,71788.0,71765.0,0.0014]
[1773573412928,0.21093533,71787.0,71765.0,0.0014]
[1773573413231,0.21093533,71786.0,71765.0,0.0014]
[1773573413432,0.21093533,71785.0,71765.0,0.0014]
[1773573413624,0.21093533,71784.0,71765.0,0.0014]
[1773573413925,0.21093533,71783.0,71765.0,0.0014]
[1773573414122,0.21093533,71782.0,71765.0,0.0014]
[1773573414324,0.21093533,71781.0,71765.0,0.0014]
[1773573414632,0.01239,71792.0,71765.0,0.0014]
[1773573414633,0.21093533,71780.0,71765.0,0.0014]
[1773573414834,0.21093533,71779.0,71765.0,0.0014]
[1773573415032,0.21093533,71778.0,71765.0,0.0014]
[1773573415333,0.21093533,71777.0,71765.0,0.0014]
[1773573415533,0.0014,71792.0,71765.0,0.0014]
[1773573415834,0.01099,71782.0,71765.0,0.0014]
[1773573416035,0.21096987,71781.0,71765.0,0.0014]
[1773573416226,0.21096987,71780.0,71765.0,0.0014]
[1773573416428,0.21096987,71779.0,71765.0,0.0014]
[1773573416629,0.21096987,71778.0,71765.0,0.0014]
[1773573416822,0.21096987,71777.0,71765.0,0.0014]
[1773573417028,0.21096987,71776.0,71765.0,0.0014]
[1773573417229,0.01099,71782.0,71765.0,0.0014]
[1773573417429,0.21101563,71781.0,71765.0,0.0014]
[1773573417640,0.21101563,71780.0,71765.0,0.0014]
[1773573417833,0.21101563,71779.0,71765.0,0.0024]
[1773573418030,0.21101563,71778.0,71765.0,0.0024]
[1773573418336,0.72782249,71834.0,71772.0,0.41756219]
[1773573418643,0.07462658,71866.0,71772.0,0.41756219]
[1773573418644,0.72068608,71864.0,71812.0,0.01090902]
[1773573418826,0.01103613,71848.0,71814.0,0.01090902]
[1773573419032,0.01103613,71848.0,71816.0,0.01090902]
[1773573419332,0.01033613,71848.0,71843.0,0.1670248]
[1773573419527,0.01103613,71865.0,71844.0,0.28435688]
[1773573419731,0.01103613,71867.0,71845.0,0.28435688]
[1773573419937,0.01103613,71864.0,71846.0,0.28295688]
[1773573420138,0.01103613,71864.0,71847.0,0.0014]
[1773573420334,0.01103613,71862.0,71847.0,0.0014]
[1773573420534,0.01103613,71862.0,71848.0,0.0014]
[1773573420737,0.01103613,71860.0,71849.0,0.0014]
[1773573421638,0.01103613,71860.0,71850.0,0.0014]
[1773573421839,0.01103613,71860.0,71838.0,0.01098]
[1773573421840,0.01103613,71858.0,71849.0,0.0014]
[1773573422033,0.01103613,71858.0,71850.0,0.0014]
[1773573422233,0.01103613,71858.0,71851.0,0.0014]
[1773573422934,0.01097,71860.0,71852.0,0.0014]
[1773573423134,0.01103613,71859.0,71838.0,0.01098]
[1773573423440,0.01103613,71859.0,71829.0,0.25052933]
[1773573423441,0.01103613,71858.0,71839.0,0.0014]
[1773573423642,0.01103613,71858.0,71820.0,0.31317151]
[1773573423643,0.01103613,71858.0,71838.0,0.0014]
[1773573423838,0.01239613,71858.0,71834.0,0.0014]
[1773573424240,0.01239613,71858.0,71817.0,0.25052933]
[1773573424437,0.01103613,71856.0,71818.0,0.0014]
[1773573424739,0.01103613,71856.0,71811.0,0.01090902]
[1773573424740,0.01103613,71856.0,71819.0,0.0014]
[1773573425041,0.00136,71855.0,71820.0,0.0014]
[1773573425335,0.01103613,71854.0,71821.0,0.0014]
[1773573427845,0.01103613,71854.0,71822.0,0.25052933]
[1773573428148,0.01103613,71854.0,71821.0,0.25192933]
[1773573428845,0.01103613,71852.0,71820.0,0.26150933]
[1773573429144,0.01103613,71852.0,71821.0,0.0014]
[1773573430240,0.01203613,71852.0,71821.0,0.0014]
[1773573430535,0.01303613,71852.0,71817.0,0.25052933]
[1773573430742,0.01303613,71852.0,71798.0,0.02418797]
[1773573430942,0.0103304,71849.0,71798.0,0.02418797]
[1773573431239,0.01103613,71848.0,71799.0,0.02558631]
[1773573431435,0.01243613,71847.0,71799.0,0.02558631]
[1773573432245,0.01243613,71847.0,71805.0,0.01098]
[1773573432444,0.01243613,71847.0,71806.0,0.31344836]
[1773573432645,0.01243613,71847.0,71807.0,0.31344836]
[1773573432646,0.02341613,71847.0,71807.0,0.31344836]
[1773573432846,0.01103613,71846.0,71808.0,0.31484836]
[1773573433047,0.01103613,71846.0,71809.0,0.31344836]
[1773573433347,0.01103613,71846.0,71810.0,0.31344836]
[1773573433539,0.01103613,71846.0,71811.0,0.31344836]
[1773573433738,0.01103613,71846.0,71812.0,0.31344836]
[1773573433934,0.01103613,71846.0,71808.0,0.0014]
[1773573434133,0.01303613,71846.0,71809.0,0.31344715]
[1773573434344,0.01303613,71846.0,71810.0,0.31344715]
[1773573434547,0.01303613,71846.0,71811.0,0.31344715]
[1773573434746,0.01303613,71846.0,71812.0,0.31344715]
[1773573435049,0.01303613,71846.0,71808.0,0.0014]
[1773573435253,0.01303613,71846.0,71809.0,0.31344657]
[1773573435446,0.01103613,71844.0,71810.0,0.31344657]
[1773573435640,0.01103613,71844.0,71811.0,0.31344657]
[1773573435842,0.01103613,71844.0,71813.0,0.02408979]
[1773573436145,0.01103613,71844.0,71815.0,0.02408979]
[1773573436347,0.01103613,71842.0,71816.0,0.33753636]
[1773573436538,0.01103613,71842.0,71817.0,0.31484657]
[1773573436741,0.01103613,71842.0,71818.0,0.31344657]
[1773573437045,0.01103613,71842.0,71819.0,0.31344657]
[1773573437246,0.01103613,71842.0,71820.0,0.31344657]
[1773573437448,0.01103613,71842.0,71821.0,0.31344657]
[1773573437641,0.01103613,71842.0,71822.0,0.31344657]
[1773573437945,0.01103613,71842.0,71817.0,0.0014]
[1773573438145,0.01103613,71842.0,71818.0,0.3133991]
[1773573438335,0.01103613,71842.0,71819.0,0.3133991]
[1773573438535,0.01103613,71842.0,71820.0,0.3133991]
[1773573438744,0.01103613,71842.0,71821.0,0.3133991]
[1773573439047,0.01103613,71842.0,71822.0,0.3133991]
[1773573439249,0.01103613,71842.0,71804.0,0.02429893]
[1773573439447,0.01103613,71842.0,71806.0,0.02429893]
[1773573439647,0.01103613,71842.0,71807.0,0.3147991]
[1773573439953,0.01103613,71842.0,71814.0,0.01098]
[1773573440137,0.01103613,71842.0,71815.0,0.3147991]
[1773573440341,0.01103613,71842.0,71816.0,0.3133991]
[1773573440646,0.01103613,71841.0,71815.0,0.0014]
[1773573440850,0.01103613,71839.0,71815.0,0.0014]
[1773573441152,0.01103613,71839.0,71816.0,0.31342773]
[1773573441352,0.01103613,71839.0,71815.0,0.0014]
[1773573441652,0.01103613,71839.0,71816.0,0.31342773]
[1773573441844,0.01103613,71839.0,71815.0,0.0014]
[1773573442038,0.03240319,71837.0,71816.0,0.31342773]
[1773573442246,0.03240319,71837.0,71817.0,0.31342773]
[1773573442553,0.03240319,71837.0,71815.0,0.0014]
[1773573442853,0.03240319,71837.0,71816.0,0.31342773]
[1773573443048,0.03240319,71837.0,71817.0,0.31342773]
[1773573443354,0.03240319,71837.0,71818.0,0.31342838]
[1773573443652,0.03240319,71837.0,71815.0,0.0014]
[1773573443851,0.03240319,71837.0,71816.0,0.31342838]
[1773573444049,0.03240319,71837.0,71817.0,0.31342838]
[1773573444250,0.03240319,71835.0,71818.0,0.31342838]
[1773573444552,0.03240319,71835.0,71815.0,0.0014]
[1773573444754,0.03240319,71835.0,71816.0,0.31342861]
[1773573444954,0.03240319,71835.0,71817.0,0.31342861]
[1773573445253,0.03240319,71835.0,71818.0,0.31342861]
[1773573445547,0.03240319,71835.0,71819.0,0.31342861]
[1773573445754,0.03240319,71835.0,71820.0,0.31342861]
[1773573445950,0.03240319,71835.0,71815.0,0.0014]
[1773573446158,0.03240319,71833.0,71816.0,0.31341942]
[1773573446346,0.0014,71832.0,71817.0,0.31341942]
[1773573446546,0.0014,71832.0,71818.0,0.31341942]
[1773573446852,0.0014,71832.0,71819.0,0.31341942]
[1773573447053,0.0014,71832.0,71820.0,0.31341942]
[1773573447254,0.0014,71832.0,71821.0,0.31341942]
[1773573447455,0.0014,71832.0,71822.0,0.31341942]
[1773573447755,0.0014,71832.0,71823.0,0.30506225]
[1773573447955,0.0014,71832.0,71815.0,0.0014]
[1773573448647,0.0014,71835.0,71815.0,0.03597166]
[1773573449952,0.03380319,71835.0,71815.0,0.03597166]
[1773573450354,0.03380319,71835.0,71815.0,0.04432883]
[1773573453755,0.4293292,71834.0,71815.0,0.04432883]
[1773573453945,0.46173239,71834.0,71815.0,0.04432883]
[1773573456049,0.03240319,71833.0,71815.0,0.00975717]
[1773573456455,0.03240319,71833.0,71816.0,0.0014]
[1773573456962,0.03240319,71833.0,71817.0,0.0014]
[1773573457164,0.4293292,71832.0,71817.0,0.0014]
[1773573457463,0.4293292,71832.0,71818.0,0.0014]
[1773573457764,0.46173239,71832.0,71818.0,0.0014]
[1773573458056,0.03240319,71831.0,71818.0,0.0014]
[1773573458259,0.03240319,71831.0,71806.0,0.04555166]
[1773573458462,0.03240319,71829.0,71807.0,0.0231667]
[1773573458652,0.03240319,71829.0,71816.0,0.00835717]
[1773573458852,0.03240319,71829.0,71816.0,0.00975717]
[1773573459155,0.03240319,71829.0,71816.0,0.00835717]
[1773573460056,0.4293292,71828.0,71816.0,0.00835717]
[1773573460563,0.4293292,71828.0,71814.0,0.0014]
[1773573461156,0.4293292,71828.0,71809.0,0.03457166]
[1773573461465,0.4293292,71828.0,71816.0,0.00835717]
[1773573461767,0.4307292,71828.0,71816.0,0.00835717]
[1773573462666,0.4307292,71828.0,71809.0,0.03457166]
[1773573462864,0.4307292,71828.0,71814.0,0.0014]
[1773573464262,0.03240319,71827.0,71814.0,0.0014]
[1773573466260,0.0299647,71827.0,71814.0,0.0014]
[1773573467769,0.0014,71828.0,71814.0,0.0014]
[1773573467960,0.4293292,71827.0,71814.0,0.0014]
[1773573472069,0.0014,71828.0,71814.0,0.0014]
[1773573472271,0.4293292,71827.0,71814.0,0.0014]
[1773573472769,0.03078085,71826.0,71811.0,0.0014]
[1773573472964,0.03078085,71826.0,71812.0,0.01397979]
[1773573473162,0.03078085,71826.0,71808.0,0.0014]
[1773573477863,0.4293292,71827.0,71808.0,0.03172815]
[1773573478071,0.0014,71825.0,71808.0,0.03172815]
[1773573480372,0.03078085,71823.0,71806.0,0.01098]
[1773573480571,0.4293292,71824.0,71807.0,0.0014]
[1773573480967,0.4293292,71824.0,71806.0,0.01098]
[1773573481172,0.03078085,71823.0,71808.0,0.0014]
[1773573482973,0.0014,71822.0,71808.0,0.0014]
[1773573483774,0.4293292,71821.0,71808.0,0.0014]
[1773573486869,0.0014,71822.0,71808.0,0.0014]
[1773573487070,0.4293292,71821.0,71808.0,0.0014]
[1773573487270,0.4293292,71821.0,71809.0,0.02176867]
[1773573487475,0.4293292,71821.0,71808.0,0.0014]
[1773573487675,0.4293292,71821.0,71809.0,0.02176867]
[1773573487869,0.4293292,71821.0,71808.0,0.0014]
[1773573488078,0.4293292,71821.0,71809.0,0.02176867]
[1773573488275,0.0014,71822.0,71808.0,0.0014]
[1773573488577,0.0014,71822.0,71809.0,0.02176867]
[1773573488775,0.0014,71822.0,71808.0,0.0014]
[1773573488976,0.0014,71822.0,71809.0,0.02176867]
[1773573489277,0.0014,71822.0,71808.0,0.0014]
[1773573489478,0.0014,71822.0,71809.0,0.02176867]
[1773573489669,0.0014,71822.0,71808.0,0.0014]
[1773573489875,0.01098,71824.0,71809.0,0.02176867]
[1773573490078,0.01098,71824.0,71808.0,0.0014]
[1773573490079,0.4307292,71823.0,71808.0,0.0014]
[1773573490675,0.03078085,71822.0,71808.0,0.0014]
[1773573491070,0.03078085,71822.0,71798.0,0.01098]
[1773573491268,0.03078085,71822.0,71802.0,0.0014]
[1773573491476,0.03078085,71822.0,71803.0,0.02176951]
[1773573491676,0.03078085,71822.0,71802.0,0.0014]
[1773573491879,0.03078085,71822.0,71803.0,0.02176951]
[1773573492080,0.03078085,71822.0,71802.0,0.0014]
[1773573492281,0.03078085,71822.0,71803.0,0.02176951]
[1773573492481,0.03078085,71822.0,71802.0,0.0014]
[1773573492681,0.03078085,71822.0,71803.0,0.0217695]
[1773573492883,0.03078085,71822.0,71802.0,0.0014]
[1773573493078,0.03078085,71822.0,71803.0,0.02176948]
[1773573493281,0.03078085,71822.0,71802.0,0.0014]
[1773573493477,0.03078085,71822.0,71803.0,0.02176948]
[1773573493677,0.03078085,71822.0,71802.0,0.0014]
[1773573493873,0.4307292,71823.0,71803.0,0.05209761]
[1773573494079,0.0014,71822.0,71804.0,0.05209691]
[1773573494281,0.0014,71822.0,71806.0,0.03032815]
[1773573494474,0.0014,71822.0,71808.0,0.03032815]
[1773573494678,0.4293292,71823.0,71808.0,0.03032815]
[1773573494878,0.0014,71822.0,71809.0,0.0014]
[1773573495484,0.4293292,71823.0,71809.0,0.0014]
[1773573495879,0.01238,71824.0,71809.0,0.0014]
[1773573496181,0.03078085,71822.0,71798.0,0.01098]
[1773573496380,0.03078085,71822.0,71799.0,0.02177049]
[1773573496577,0.03078085,71822.0,71800.0,0.02177049]
[1773573496779,0.03078085,71822.0,71801.0,0.01518372]
[1773573497081,0.03078085,71822.0,71798.0,0.01098]
[1773573497281,0.03078085,71822.0,71798.0,0.00261961]
[1773573499388,0.03078085,71822.0,71798.0,0.01098]
[1773573500483,0.03078085,71822.0,71798.0,0.00261961]
[1773573502077,0.4293292,71821.0,71800.0,0.03005082]
[1773573502692,0.45784013,71821.0,71800.0,0.03005082]
[1773573503089,0.45784013,71821.0,71801.0,0.0014]
[1773573504286,0.45784013,71821.0,71800.0,0.03005082]
[1773573504489,0.45784013,71821.0,71801.0,0.0014]
[1773573504889,0.45784013,71821.0,71802.0,0.0014]
[1773573505394,0.45784013,71821.0,71806.0,0.00836039]
[1773573505595,0.45784013,71821.0,71802.0,0.0014]
[1773573506296,0.45784013,71821.0,71800.0,0.03005082]
[1773573506591,0.45784013,71821.0,71806.0,0.00836039]
[1773573507893,1.97784013,71821.0,71806.0,0.00836039]
[1773573513999,1.97784013,71821.0,71802.0,0.0014]
[1773573516895,1.54851093,71821.0,71802.0,0.0014]
[1773573517202,1.54851093,71821.0,71800.0,0.03005082]